{"text_format":"3","workbook":"xlsx","n_sheets":5,"sheets":["Общие данные","Заявка по ОР 03.120.00-КТН-0439","Заявка по СНК ОПО РОНКТД","Заявка на продление СНК ОПО РОН","график аттестации"],"not_rendered":{"macros":1,"defined_names":16},"read":"whole","date_system":"1900"}

{"sheet":"Общие данные","index":0,"n_rows":223,"n_cols":32,"rows_kept":223,"merged":[[27,0,27,3],[28,0,28,1],[28,2,28,3]]}
["Дата оформления заявки",{"$f":"TODAY()","v":"2024-03-11"},"ИНН ОСТ устанавливается автоматически при выборе из списка организации системы Транснефть"]
["Полное наименование заявителя аттестации \n(Фамилия, имя, отчество заявителя - физического лица)",null,{"$f":"VLOOKUP(B2,A165:B203,2,FALSE)","v":{"$error":"#N/A"}}]
["Должность руководителя организации-заявителя"]
["Руководитель организации-заявителя действующий на основании: ",{"$nulls":3},"Устава","Доверенности"]
["Фамилия, имя, отчество (руководителя/физического лица)"]
["Адрес (место нахождения) юридический адрес."]
["Почтовый адреc                                                                                                                                   адрес регистрации для физического лица)",null,"Номер телефона контактного лица"]
["Контактное лицо (ФИО) "]
["ИНН (организации или частного лица)",{"$f":"C2","v":{"$error":"#N/A"}},3452]
["Фамилия, имя, отчество (специалиста НК)"]
["Телефон (специалиста НК)"]
["Дата рождения (специалиста НК)"]
["Электронный адрес (контактного лица/организации)"]
["Электронный адрес (специалиста НК)"]
["Должность (специалиста НК)"]
["Уровень аттестации",null,null," I"," II",{"$nulls":9},1,2,3,4,5,6]
["Стаж практической работы по методу НК с ",{"$nulls":13},"ВИК (Визуальный и измерительный контроль)","РК (Радиографический контроль)","УК (Ультразвуковой контроль)","МК (Магнитный контроль)","ПВК (Капиллярный контроль)","ПВТ (Течеискание)","ВК (Вихретоковый контроль)","ВД (Вибродиагностический контроль)","ЭК (Электрический контроль)","ТК (Тепловой контроль)",{"$nulls":4},1,"1. Входной контроль труб, соединительных деталей трубопроводов, трубной арматуры, металлоконструкций резервуаров ",1,"ВИК"]
["Стаж практической работы по методу НК на объектах ОСТ с какого года",{"$nulls":13},"с 10.01.2024 по 12.01.2024","с 10.01.2024 по 12.01.2024","с 10.01.2024 по 12.01.2024","с 15.01.2024 по 17.01.2024","с 15.01.2024 по 17.01.2024","с 15.01.2024 по 17.01.2024","с 15.01.2024 по 16.01.2024","с 17.01.2024 по 18.01.2024","с 15.01.2024 по 16.01.2024","с 17.01.2024 по 18.01.2024",{"$nulls":4},2,"2. Контроль сварных соединений и основного металла оборудования НПС при эксплуатации и техническом диагностировании ",2,"ВИК, РК, УК, МК, ПВК"]
["Производственный стаж по методу (виду) НК (при аттестации на II и III уровни)",{"$nulls":13},"с 22.01.2024 по 24.01.2024","с 22.01.2024 по 24.01.2024","с 22.01.2024 по 24.01.2024","с 22.01.2024 по 24.01.2024","с 25.01.2024 по 29.01.2024","с 25.01.2024 по 29.01.2024","с 13.02.2024 по 14.02.2024","с 14.02.2024 по 15.02.2024","с 13.02.2024 по 14.02.2024","с 14.02.2024 по 15.02.2024",{"$nulls":4},3,"3. Контроль сварных соединений и основного металла трубопроводов для нефти и нефтепродуктов, включая технологические трубопроводы, при строительстве, монтаже, ремонте, реконструкции ",3,"ВИК, РК, УК, МК, ПВК"]
["Данные о пересдаче (заполняется при пересдаче)",null," ",{"$nulls":11},"с 08.02.2024 по 12.02.2024","с 05.02.2024 по 07.02.2024","с 05.02.2024 по 07.02.2024","с 19.02.2024 по 21.02.2024","с 08.02.2024 по 12.02.2024","с 05.02.2024 по 07.02.2024","с 04.03.2024 по 05.03.2024","с 06.03.2024 по 07.03.2024","с 04.03.2024 по 05.03.2024","с 06.03.2024 по 07.03.2024",{"$nulls":4},4,"4. Контроль сварных соединений и основного металла трубопроводов для нефти и нефтепродуктов, включая технологические трубопроводы, при эксплуатации и техническом диагностировании ",4,"ВИК, РК, УК, МК, ПВК, ПВТ"]
["Вид аттестации (первичная, дополнительная)",null,null,"первичная ","дополнительная ",{"$nulls":9},"с 19.02.2024 по 21.02.2024","с 13.02.2024 по 15.02.2024","с 13.02.2024 по 15.02.2024","с 11.03.2024 по 13.03.2024","с 19.02.2024 по 21.02.2024","с 08.02.2024 по 12.02.2024","с 15.04.2024 по 16.04.2024","с 17.04.2024 по 18.04.2024",null,"с 15.04.2024 по 16.04.2024",{"$nulls":4},5,"5. Контроль сварных соединений и основного металла резервуаров для хранения нефти и нефтепродуктов при строительстве, монтаже, ремонте, реконструкции",5,"ВИК, РК, УК, МК, ПВК, ПВТ"]
["Гражданство",null,{"$f":"B22","v":"00:00:00"},"РФ","KZ","BY",{"$nulls":8},"с 26.02.2024 по 28.02.2024","с 26.02.2024 по 28.02.2024","с 26.02.2024 по 28.02.2024","с 19.03.2024 по 21.03.2024","с 04.03.2024 по 06.03.2024","с 19.02.2024 по 21.02.2024","с 10.06.2024 по 11.06.2024","с 13.06.2024 по 14.06.2024","с 13.06.2024 по 14.06.2024","с 10.06.2024 по 11.06.2024",{"$nulls":4},6,"6. Контроль сварных соединений и основного металла резервуаров для хранения нефти и нефтепродуктов при эксплуатации и техническом диагностировании ",6,"ВИК, РК, УК, МК, ПВК, ПВТ"]
["Уровень квалификации/разряд",{"$nulls":13},"с 04.03.2024 по 06.03.2024","с 11.03.2024 по 13.03.2024","с 04.03.2024 по 06.03.2024","с 29.03.2024 по 02.04.2024","с 11.03.2024 по 13.03.2024","с 19.03.2024 по 21.03.2024","с 12.08.2024 по 13.08.2024","с 13.08.2024 по 14.08.2024","с 12.08.2024 по 13.08.2024","с 13.08.2024 по 14.08.2024",{"$nulls":4},7,"7. Дополнительный дефектоскопический контроль дефектов секций трубопровода ",7,"ВИК, УК, МК, ПВК"]
["Номер(а) и срок действия аттестационного(ых) удостоверения(й) при продлении аттестации по СНК ОПО РОНКТД",{"$nulls":13},"с 14.03.2024 по 18.03.2024","с 19.03.2024 по 21.03.2024","с 14.03.2024 по 18.03.2024","с 15.04.2024 по 17.04.2024","с 14.03.2024 по 18.03.2024","с 27.03.2024 по 29.03.2024","с 02.09.2024 по 03.09.2024","с 04.09.2024 по 05.09.2024","с 02.09.2024 по 03.09.2024","с 04.09.2024 по 05.09.2024"]
["Номер, дата выдачи и срок действия «Разрешения на проведение неразрушающего контроля на объектах организаций системы «Транснефть» с указанием метода НК (при наличии)",null,"При обучении в ТНПК выберите из списка программу  специалиста НК",{"$nulls":11},"с 22.03.2024 по 26.03.2024","с 08.04.2024 по 10.04.2024","с 22.03.2024 по 26.03.2024",null,"с 22.03.2024 по 26.03.2024"]
["Сведения об обучении по методу НК",{"$nulls":13},"с 08.04.2024 по 10.04.2024",null,"с 05.04.2024 по 09.04.2024","с 16.05.2024 по 20.05.2024","с 10.04.2024 по 12.04.2024","с 15.04.2024 по 17.04.2024",null,null,"с 11.12.2024 по 12.12.2024"]
["Образование",{"$nulls":13},"с 03.05.2024 по 07.05.2024","с 03.05.2024 по 07.05.2024",null,"с 05.06.2024 по 07.06.2024","с 03.05.2024 по 07.05.2024","с 13.05.2024 по 15.05.2024"]
["Данные для ввода в зависимости от нормативного документа по аттестации.",{"$nulls":13},"с 13.05.2024 по 15.05.2024","с 13.05.2024 по 15.05.2024","с 03.05.2024 по 07.05.2024","с 19.06.2024 по 21.06.2024","с 16.05.2024 по 20.05.2024","с 10.06.2024 по 13.06.2024"]
["ОР 03.120.00-КТН-0439-22 ",null,"СНК ОПО РОНКТД-02-2021",{"$nulls":11},"с 16.05.2024 по 20.05.2024","с 21.05.2024 по 23.05.2024","с 13.05.2024 по 15.05.2024","с 08.08.2024 по 12.08.2024","с 21.05.2024 по 23.05.2024","с 19.06.2024 по 21.06.2024"]
["Метод НК ","УК (Ультразвуковой контроль)","Метод НК ",null,{"$f":"LEFT(B30,3)","v":"УК "},{"$f":"LEFT(D30,3)","v":""},{"$nulls":8},"с 10.06.2024 по 13.06.2024","с 27.05.2024 по 29.05.2024","с 21.05.2024 по 23.05.2024","с 16.08.2024 по 20.08.2024","с 10.06.2024 по 13.06.2024","с 08.08.2024 по 12.08.2024"]
["Дата проведения аттестации согласно графика ",null,"Дата проведения аттестации согласно графика ",{"$nulls":11},"с 05.08.2024 по 07.08.2024","с 05.06.2024 по 07.06.2024","с 27.05.2024 по 29.05.2024","с 26.08.2024 по 28.08.2024","с 19.06.2024 по 21.06.2024","с 16.08.2024 по 20.08.2024"]
["Виды выполняемых работ по НК в соответствии с ОР 03.120.00-КТН-0439-22 сделать многократный выбор с занесение в заявку только цифры ",null,"Объект контроля",null,{"$f":"D32","v":0},{"$nulls":9},"с 13.08.2024 по 15.08.2024","с 19.06.2024 по 21.06.2024","с 05.06.2024 по 07.06.2024","с 11.09.2024 по 13.09.2024","с 08.08.2024 по 12.08.2024","с 26.08.2024 по 28.08.2024"]
["Код выполняемых работ по НК в соответствии с ОР 03.120.00-КТН-0439-22",{"$f":"LEFT(B32,1)","v":""},"Технические устройства",null,{"$f":"LEFT(D33,3)","v":""},{"$nulls":9},"с 21.08.2024 по 23.08.2024","с 05.08.2024 по 07.08.2024","с 05.08.2024 по 07.08.2024","с 18.09.2024 по 20.09.2024","с 16.08.2024 по 20.08.2024","с 06.09.2024 по 10.09.2024"]
["Виды выполняемых работ по НК в соответствии с ОР 03.120.00-КТН-0439-22 сделать многократный выбор с занесение в заявку только цифры ",null,"Объект контроля",null,{"$f":"D34","v":0},{"$nulls":9},"с 03.09.2024 по 05.09.2024","с 13.08.2024 по 15.08.2024","с 13.08.2024 по 15.08.2024","с 30.09.2024 по 02.10.2024","с 26.08.2024 по 28.08.2024","с 18.09.2024 по 20.09.2024"]
["Код выполняемых работ по НК в соответствии с ОР 03.120.00-КТН-0439-22",{"$f":"LEFT(B34,1)","v":""},"Технические устройства",null,{"$f":"LEFT(D35,3)","v":""},{"$nulls":9},"с 11.09.2024 по 13.09.2024","с 21.08.2024 по 23.08.2024","с 21.08.2024 по 23.08.2024","с 15.10.2024 по 17.10.2024","с 06.09.2024 по 10.09.2024","с 07.10.2024 по 09.10.2024"]
["Виды выполняемых работ по НК в соответствии с ОР 03.120.00-КТН-0439-22 сделать многократный выбор с занесение в заявку только цифры ",null,"Объект контроля",null,{"$f":"D36","v":0},{"$nulls":9},"с 23.09.2024 по 25.09.2024","с 03.09.2024 по 05.09.2024","с 03.09.2024 по 05.09.2024","с 23.10.2024 по 25.10.2024","с 13.09.2024 по 17.09.2024","с 14.10.2024 по 16.10.2024"]
["Код выполняемых работ по НК в соответствии с ОР 03.120.00-КТН-0439-22",{"$f":"LEFT(B36,1)","v":""},"Технические устройства",null,{"$f":"LEFT(D37,3)","v":""},{"$nulls":9},"с 03.10.2024 по 07.10.2024","с 18.09.2024 по 20.09.2024","с 11.09.2024 по 13.09.2024","с 02.11.2024 по 06.11.2024","с 03.10.2024 по 07.10.2024","с 18.10.2024 по 22.10.2024"]
["Виды выполняемых работ по НК в соответствии с ОР 03.120.00-КТН-0439-22 сделать многократный выбор с занесение в заявку только цифры ",null,"Объект контроля",null,{"$f":"D38","v":0},{"$nulls":9},"с 15.10.2024 по 17.10.2024","с 23.09.2024 по 25.09.2024","с 23.09.2024 по 25.09.2024","с 12.11.2024 по 14.11.2024","с 18.10.2024 по 22.10.2024","с 07.11.2024 по 11.11.2024"]
["Код выполняемых работ по НК в соответствии с ОР 03.120.00-КТН-0439-22",{"$f":"LEFT(B38,1)","v":""},"Технические устройства",null,{"$f":"LEFT(D39,3)","v":""},{"$nulls":9},"с 28.10.2024 по 30.10.2024","с 10.10.2024 по 14.10.2024","с 03.10.2024 по 07.10.2024","с 25.11.2024 по 27.11.2024","с 07.11.2024 по 11.11.2024","с 18.11.2024 по 20.10.2024"]
["Виды выполняемых работ по НК в соответствии с ОР 03.120.00-КТН-0439-22 сделать многократный выбор с занесение в заявку только цифры ",null,"Объект контроля",{"$nulls":11},"с 02.11.2024 по 06.11.2024","с 23.10.2024 по 25.10.2024","с 15.10.2024 по 17.10.2024","с 05.12.2024 по 09.12.2024","с 25.11.2024 по 27.11.2024","с 25.11.2024 по 27.11.2024"]
["Код выполняемых работ по НК в соответствии с ОР 03.120.00-КТН-0439-22",{"$f":"LEFT(B40,1)","v":""},"Технические устройства",null,{"$f":"LEFT(D41,3)","v":""},{"$nulls":9},"с 12.11.2024 по 14.11.2024","с 07.11.2024 по 11.11.2024","с 28.10.2024 по 30.10.2024","с 16.12.2024 по 18.12.2024","с 05.12.2024 по 09.12.2024","с 05.12.2024 по 09.12.2024"]
["Виды выполняемых работ по НК в соответствии с ОР 03.120.00-КТН-0439-22 сделать многократный выбор с занесение в заявку только цифры ",null,"Объект контроля",{"$nulls":11},"с 19.11.2024 по 21.11.2024","с 25.11.2024 по 27.11.2024","с 02.11.2024 по 06.11.2024","с 23.12.2024 по 25.12.2024","с 13.12.2024 по 17.12.2024","с 13.12.2024 по 17.12.2024"]
["Код выполняемых работ по НК в соответствии с ОР 03.120.00-КТН-0439-22",{"$f":"LEFT(B42,1)","v":""},"Технические устройства",null,{"$f":"LEFT(D43,5)","v":""},{"$nulls":9},"с 02.12.2024 по 04.12.2024","с 02.12.2024 по 04.12.2024","с 12.11.2024 по 14.11.2024",null,"с 23.12.2024 по 25.12.2024","с 23.12.2024 по 25.12.2024"]
["Виды выполняемых работ по НК в соответствии с ОР 03.120.00-КТН-0439-22 сделать многократный выбор с занесение в заявку только цифры ",{"$nulls":13},"с 10.12.2024 по 12.12.2024","с 10.12.2024 по 12.12.2024","с 19.11.2024 по 21.11.2024"]
["Код выполняемых работ по НК в соответствии с ОР 03.120.00-КТН-0439-22",{"$f":"LEFT(B44,1)","v":""},{"$nulls":12},"с 18.12.2024 по 20.12.2024","с 18.12.2024 по 20.12.2024","с 02.12.2024 по 04.12.2024"]
["Программа аттестации",{"$f":"VLOOKUP(B30,A70:B75,2,FALSE)","v":"8.02.02 Аттестация специалистов ультразвукового метода неразрушающего контроля"},{"$nulls":12},"с 23.12.2024 по 25.12.2024"," ","с 10.12.2024 по 12.12.2024"]
[{"$nulls":16},"с 18.12.2024 по 20.12.2024"]
[{"$nulls":16},"с 25.12.2024 по 27.12.2024"]
{"$rows_empty":21}
["РК (Радиографический контроль)","8.01.02 Аттестация специалистов радиационного метода неразрушающего контроля"]
["УК (Ультразвуковой контроль)","8.02.02 Аттестация специалистов ультразвукового метода неразрушающего контроля"]
["МК (Магнитный контроль)","8.04.02 Аттестация специалистов магнитного метода неразрушающего контроля"]
["ПВК (Капиллярный контроль)","8.05.02 Аттестация специалистов по НК проникающими веществами (капиллярный)"]
["ПВТ (Течеискание)","8.06.02  Аттестация специалистов по НК проникающими веществами (течеискание)"]
["ВИК (Визуальный и измерительный контроль)","8.07.02 Аттестация специалистов визуального и измерительного метода НК"]
[]
["Аспирантура, ординатура, адъюнктура"]
["Высшее образование"]
["Высшее образование-бакалавриат"]
["Высшее образование-магистратура"]
["Высшее образование-специалитет"]
["Начальное профессиональное образование"]
["Неполное высшее образование"]
["Неполное среднее образование"]
["Основное общее"]
["Профессиональная переподготовка"]
["Среднее общее образование"]
["Среднее профессиональное образование"]
["Среднее общее образование"]
["Среднее профессиональное образование "]
[]
["ВИК"]
["РК"]
["УК"]
["МК"]
["ПВК"]
["ПВТ"]
[]
["1. Входной контроль труб, соединительных деталей трубопроводов, трубной арматуры, металлоконструкций резервуаров ",1]
["2. Контроль сварных соединений и основного металла оборудования НПС при эксплуатации и техническом диагностировании ",2]
["3. Контроль сварных соединений и основного металла трубопроводов для нефти и нефтепродуктов, включая технологические трубопроводы, при строительстве, монтаже, ремонте, реконструкции ",3]
["4. Контроль сварных соединений и основного металла трубопроводов для нефти и нефтепродуктов, включая технологические трубопроводы, при эксплуатации и техническом диагностировании ",4]
["5. Контроль сварных соединений и основного металла резервуаров для хранения нефти и нефтепродуктов при строительстве, монтаже, ремонте, реконструкции",5]
["6. Контроль сварных соединений и основного металла резервуаров для хранения нефти и нефтепродуктов при эксплуатации и техническом диагностировании ",6]
["7. Дополнительный дефектоскопический контроль дефектов секций трубопровода ",7]
[]
["V"," "]
["-"]
[]
["1. Котельное оборудование (КО)"]
["2. Газовое оборудование (ГО) "]
["3. Подъемно-транспортное оборудование (ПТО)"]
["6. Нефтегазодобывающее оборудование (НГДО)"]
["8. Оборудование химических, нефтехимических, нефтеперерабатывающих и взрывопожароопасных производств (ОХНВП)"]
["11. Строительные конструкции (СК)"]
[]
["1.1. Котлы (паровые, в том числе котлы-бойлеры, а также автономные пароперегреватели и экономайзеры; водогрейные и пароводогрейные;\nэнерготехнологические; котлы-утилизаторы; котлы передвижных и транспортабельных установок; паровые и жидкостные, работающие\nс высокотемпературными органическими и неорганическими\nтеплоносителями (кроме воды и водяного пара); электрокотлы"]
["1.2. Металлические конструкции для котельного оборудования"]
["1.3. Сосуды, работающие под давлением пара, газов, жидкостей"]
["1.4. Трубопроводы пара и горячей воды"]
["1.5. Трубопроводы пара и горячей воды"]
[]
["2.1. Внутренние газопроводы"]
["2.2. Наружные газопроводы стальные"]
["2.3. Наружные газопроводы полиэтиленовые"]
["2.4. Детали и узлы, газовое оборудование"]
[]
["3.1. Грузоподъемные краны"]
["3.2. Подъемники (вышки)"]
["3.3. Дороги канатные, их агрегаты, механизмы и детали. Фуникулеры"]
["3.4. Эскалаторы. Лифты. Платформы подъемные для инвалидов.\nПассажирские конвейеры\n"]
["3.5. Краны – трубоукладчики"]
["3.6. Краны – манипуляторы"]
["3.7. Тали, лебедки"]
["3.8. Устройства грузозахватные. Цепи для подъемно-транспортного\nоборудования\n"]
["3.9. Крановые пути"]
[]
["6.1. Нефтегазопромысловое и буровое оборудование"]
["6.2. Морские трубопроводы, объекты на шельфе (трубопроводы на\nплатформах, а также сварные основания морских платформ)\n"]
["6.3. Промысловые газонефтепродуктопроводы"]
["6.4. Магистральные газопроводы"]
["6.5. Магистральные нефтепроводы и нефтепродуктопроводы"]
["6.6. Резервуары для хранения нефти и нефтепродуктов"]
["6.7. Нефтегазопроводные трубы. Детали трубопроводов. Запорная\nарматура. Насосы, компрессоры\n"]
["6.8. Технологические трубопроводы в пределах УКПГ, КС; ЛДПС, НПС;\nСПХГ; ДКС; ГРС; УЗРГ; ПРГ и др., за исключением трубопроводов,\nобеспечивающих транспорт газа, нефти и нефтепродуктов;\nтрубопроводы автоматизированных газонаполнительных\nкомпрессорных станций (АГНКС)\n"]
[]
["8.1. Оборудование химических, нефтехимических,\nнефтехимических, нефтеперерабатывающих производств, работающее под давлением\n до 16 МПа\n"]
["8.2. Оборудование химических, нефтехимических,\nнефтеперерабатывающих производств, работающее под давлением\nболее 16 МПа\n"]
["8.3.Оборудование химических, нефтехимических,\nнефтеперерабатывающих производств, работающее под вакуумом.\n"]
["8.4. Резервуары для хранения взрывопожароопасных и токсичных\nвеществ\n"]
["8.5. Изотермические хранилища"]
["8.6. Криогенное оборудование"]
["8.7. Оборудование аммиачных холодильных установок"]
["8.8. Печи, котлы-утилизаторы, энерготехнологические, ВОТ"]
["8.9. Компрессорное и насосное оборудование"]
["8.10. Центрифуги, сепараторы"]
["8.11. Цистерны, контейнеры (бочки), баллоны\nдля взрывопожароопасных и токсичных веществ\n"]
["8.12. Технологические трубопроводы и детали трубопроводов"]
[]
["11.1. Металлические строительные конструкции"]
["11.2. Бетонные и железобетонные конструкции, арматура, арматурные\nи закладные изделия железобетонных конструкций\n"]
["11.3. Металлические трубопроводы"]
["11.4. Конструкции и трубопроводы из полимерных материалов"]
[]
["Полное наименование","ИНН"]
["Акционерное общество \"Транснефть-Север\"",1102016594]
["Альметьевское районное нефтепроводное управление - филиал Акционерного общества «Транснефть –Прикамье») ","1645000340"]
["Пермское районное нефтепроводное управление - филиал Акционерного общества \"Транснефть-Прикамье\"","1645000340"]
["Акционерное общество \"Транснефть - Прикамье\"","1645000340"]
["Средне-Волжское акционерное общество трубопроводного транспорта нефтепродуктов","1660001027"]
["Тихорецкое районное управление магистральных нефтепроводов АО \"Черномортранснефть\"","2315072242"]
["Акционерное общество \"Черномортранснефть\"","2315072242"]
["Общество с ограниченной ответственностью \"Транснефть-Порт Козьмино\"","2508081814"]
["Общество с ограниченной ответственностью \"Транснефть-Дальний Восток\"","2724132118"]
["Акционерное общество \"Транснефть-Дружба\"","3235002178"]
["Общество с ограниченной ответственностью \"Транснефть - Восток\"","3801079671"]
["Общество с ограниченной ответственностью \"Транснефть - Балтика\"","4704041900"]
["Общество с ограниченной ответственностью \"Транснефть - Порт Приморск\"","4704045809"]
["Акционерное общество \"Транснефть-Диаскан\"","5072703668"]
["Акционерное общество \"Транснефть-Подводсервис\"","5250000820"]
["Марийское районное нефтепроводное управление - филиал Акционерного общества \"Транснефть-Верхняя Волга\")","5260900725"]
["Акционерное общество \"Транснефть - Верхняя Волга\" ","5260900725"]
["Рязанское районное нефтепроводное управление - филиал Акционерного общества \"Транснефть-Верхняя Волга\"","5260900725"]
["Горьковское районное нефтепроводное управление - филиал Акционерного общества \"Транснефть-Верхняя Волга\"","5260900725"]
["Володарское районное нефтепродуктопроводное управление - филиал Акционерного общества \"Транснефть-Верхняя Волга\"","5260900725"]
["Акционерное общество \"Транснефть-Западная Сибирь\"","5502020634"]
["Общество с ограниченной ответственностью \"ТранснефтьЭлектросетьСервис\"","6311049306"]
["Волгоградское РНУ филиал АО «Транснефть-Приволга»","6317024474"]
["АО \"Транснефть - Приволга\"","6317024749"]
["Акционерное общество «Транснефть – Приволга» филиал «Самарское районное нефтепроводное управление»","6317024749"]
["Филиал АО «Транснефть-Приволга» «Саратовское районное нефтепроводное управление»  ","6317024749"]
["АО «Транснефть-Приволга» ","6317024749"]
["Акционерное общество \"Транснефть-Приволга\"","6317024749"]
["Общество с ограниченной ответственностью \"Транснефть-Трубопроводная строительная дирекция\"","6317099159"]
["Акционерное общество \"Транснефть-Центральная Сибирь\"","7017004366"]
["Акционерное общество \"Транснефть-Сибирь\"","7201000726"]
["Акционерное общество \"Транснефть Нефтяные Насосы\"","7449026737"]
["Акционерное Общество «РУССКИЕ ЭЛЕКТРИЧЕСКИЕ ДВИГАТЕЛИ» ","7449126763"]
["ООО \"Уральские динамические машины\"","7449139434"]
["Акционерное общество «Транснефть-Терминал» ","7706092528"]
["Открытое акционерное общество \"Мостранснефтепродукт\"","7707085724"]
["Общество с ограниченной ответственностью \"Транснефть Надзор\"","7715965306"]
["Общество с ограниченной ответственностью \"Научно-исследовательский институт трубопроводного транспорта\"","7736607502"]
[]
[]
["7.01.11 Подготовка специалистов радиационного метода неразрушающего контроля, ранее не имевших допуска к выполнению на объектах ОАО \"АК \"Транснефть»"]
["7.01.14 Подготовка специалистов радиационного метода неразрушающего контроля, ранее имевших допуск к выполнению работ на объектах ОАО «АК «Транснефть»"]
["7.02.11 Подготовка специалистов ультразвукового метода неразрушающего контроля, ранее не имевших допуска к выполнению работ на объектах ОАО «АК «Транснефть»"]
["7.02.14 Подготовка специалистов ультразвукового метода неразрушающего контроля, ранее имевших допуск к выполнению работ на объектах ОАО «АК «Транснефть»"]
["7.03.15 Подготовка специалистов вихретокового метода неразрушающего контроля"]
["7.04.11 Подготовка специалистов магнитного метода неразрушающего контроля, ранее не имевших допуска к выполнению работ на объектах ОАО «АК «Транснефть»"]
["7.04.14 Подготовка специалистов магнитного метода неразрушающего контроля, ранее имевших допуск к выполнению работ на объектах ОАО «АК «Транснефть»"]
["7.05.11 Подготовка специалистов капиллярного метода неразрушающего контроля, ранее не имевших допуска к выполнению работ на объектах ОАО «АК «Транснефть»"]
["7.05.14 Подготовка специалистов капиллярного метода неразрушающего контроля, ранее имевших допуск к выполнению работ на объектах ОАО «АК «Транснефть»"]
["7.06.11 Подготовка специалистов по методу неразрушающего контроля проникающими веществами течеисканием, ранее не имевших допуска к выполнению работ на объектах ОАО «АК «Транснефть»"]
["7.06.12 Подготовка специалистов по методу неразрушающего контроля проникающими веществами течеисканием, ранее не имевших допуск к выполнению работ на объектах ПАО \"Транснефть\" "]
["7.06.14 Подготовка специалистов по методу неразрушающего контроля проникающими веществами течеисканием, ранее имевших допуск к выполнению работ на объектах ОАО «АК «Транснефть»"]
["7.07.11 Подготовка специалистов визуального и измерительного метода неразрушающего контроля, ранее не имевших допуска к выполнению работ на объектах ОАО «АК «Транснефть»"]
["7.07.14 Подготовка специалистов визуального и измерительного метода неразрушающего контроля, ранее имевших допуск к выполнению работ на объектах ОАО «АК «Транснефть»"]
["7.07.15 Подготовка специалистов визуального и измерительного метода неразрушающего контроля, ранее не имевших допуска к выполнению работ на объектах ПАО \"Транснефть\""]
["7.07.16 Подготовка специалистов визуального и измерительного метода неразрушающего контроля, ранее имевших допуск к выполению раюот на объектах ПАО Транснефть\""]
["7.08.11 Подготовка специалистов вибрационного метода неразрушающего контроля"]
["7.09.11 Подготовка специалистов электрического метода неразрушающего контроля"]

{"sheet":"Заявка по ОР 03.120.00-КТН-0439","index":1,"n_rows":59,"n_cols":11,"rows_kept":59,"merged":[[1,0,1,9],[4,0,4,6],[4,8,4,9],[5,0,5,6],[6,0,6,6],[6,8,6,9],[7,0,7,6],[8,0,8,6],[8,8,8,9],[9,0,9,6],[10,0,10,6],[10,8,10,9],[11,0,11,6],[12,5,12,6],[13,5,13,6],[13,8,13,9],[15,2,15,8],[16,2,16,7],[17,0,17,1],[17,2,17,5],[17,6,17,8],[18,0,18,1],[18,3,18,4],[18,6,18,8],[19,1,19,2],[20,1,20,2],[23,0,23,1],[23,2,23,9],[24,4,24,9],[25,4,25,9],[26,0,26,9],[27,1,27,8],[28,0,28,9],[29,0,29,4],[29,5,29,9],[30,3,30,9],[31,0,31,2],[32,3,32,9],[34,0,34,9],[35,0,41,9],[42,0,42,9],[44,0,44,2],[44,3,44,8],[45,3,45,8],[46,0,46,2],[46,3,46,8],[47,3,47,8],[48,0,48,1],[48,3,48,6],[49,0,49,1],[49,3,49,6],[52,2,52,8],[53,2,53,8],[54,2,54,8],[55,2,55,8],[56,2,56,8],[57,2,57,8],[58,2,58,8]]}
[]
["Заявка на аттестацию"]
[]
[]
[{"$f":"'Общие данные'!B2","v":0},{"$nulls":6},"ИНН",{"$f":"'Общие данные'!B9","v":{"$error":"#N/A"}}]
["наименование заявителя"]
[{"$f":"'Заявка по СНК ОПО РОНКТД'!B6","v":0},{"$nulls":6},"Тел.:",{"$f":"'Общие данные'!B11","v":0}]
["юридический адрес"]
[{"$f":"'Заявка по СНК ОПО РОНКТД'!B7","v":0},{"$nulls":6},"e-mail:",{"$f":"'Общие данные'!B13","v":0}]
["почтовый адрес, факс"]
[{"$f":"'Общие данные'!B8","v":0},{"$nulls":6},"Тел.:",{"$f":"'Общие данные'!C8","v":0}]
["И.О. Фамилия контактного лица"]
["Просит «ТНПК» провести аттестацию в",{"$nulls":4},"п. Винзили",null,"Пересдача",{"$f":"'Общие данные'!B20","v":"00:00:00"}]
[{"$nulls":5},"место проведения аттестации",null,null,"отметить V"]
[]
["специалиста НК",null,{"$f":"'Общие данные'!B10","v":0}]
[null,null,"И.О. Фамилия"]
[{"$f":"'Общие данные'!B12","v":"00:00:00"},null,{"$f":"'Общие данные'!B15","v":0},{"$nulls":3},{"$f":"'Общие данные'!B31","v":"00:00:00"}]
["дата рождения",null,null,"должность",null,null,"даты проведения аттестации  "]
["по",{"$f":"'Общие данные'!E30","v":"УК "}]
[null,"метод НК"]
["Стаж практической работы по методу НК с ",{"$nulls":4},{"$f":"'Общие данные'!B17","v":0},"года, на объектах ОСТ с",null,{"$f":"'Общие данные'!B18","v":0},"года"]
[]
["Образование ",null,{"$f":"'Общие данные'!B27","v":0}]
["Сведения об обучении по методу НК"]
[]
[{"$f":"'Общие данные'!B26","v":0}]
[null,"наименование образовательной организации, № удостоверения, период обучения количество часов; общее, теория, практика "]
["Номер, дата выдачи и срок действия «Разрешения на проведение неразрушающего контроля на объектах организаций "]
["системы «Транснефть» с указанием метода НК",{"$nulls":4},{"$f":"'Общие данные'!B25","v":0}]
[]
["По виду (ам) выполняемых работ по НК",null,null,{"$f":"'Общие данные'!B33","v":""},{"$f":"'Общие данные'!B35","v":""},{"$f":"'Общие данные'!B37","v":""},{"$f":"'Общие данные'!B39","v":""},{"$f":"'Общие данные'!B41","v":""},{"$f":"'Общие данные'!B43","v":""},{"$f":"'Общие данные'!B45","v":""}]
[{"$nulls":3},"код вида выполняемой работы по НК"]
[]
["Заявитель предоставляет в уполномоченную организацию "]
["1 Заявка на аттестацию.\n2 Копия документа об образовании (заверенная печатью или подписью заявителя).\n3 Копия документа, подтверждающего прохождение курса обучения/предварительной подготовки по конкретному методу НК (заверенная печатью или подписью заявителя).\n4 Заверенная заявителем копия положительного медицинского заключения о состоянии здоровья специалиста НК в соответствии с «Порядком проведения обязательных и периодических медицинских осмотров работников, предусмотренных частью четвертой статьи 213 Трудового кодекса Российской Федерации, перечня медицинских противопоказаний к осуществлению работ с вредными и (или) опасными производственными факторами, а также работам, при выполнении которых проводятся обязательные предварительные и периодические медицинские осмотры» (утвержден приказом Министерства здравоохранения Российской Федерации от 28.01.2021 № 29н) или справка по оценке остроты зрения согласно ГОСТ Р ИСО 18490, оформленная заявителем.\n"]
[]
[]
[]
[]
[]
[]
["При непредставлении полного перечня документов специалист НК не будет допущен к аттестации"]
[]
["Руководитель организации ",null,null,{"$f":"'Общие данные'!B3","v":0}]
[{"$nulls":3},"должность"]
["действующий на основании ",null,null,{"$f":"'Общие данные'!B4","v":0}]
[{"$nulls":3},"устав, доверенность и т.п. "]
[{"$nulls":3},{"$f":"'Общие данные'!B5","v":0},{"$nulls":4},{"$f":"'Общие данные'!B1","v":"2024-03-11"}]
["подпись",null,null,"И.О. Фамилия",{"$nulls":4},"дата"]
[null,"М.П."]
[]
[null,1,"1. Входной контроль труб, соединительных деталей трубопроводов, трубной арматуры, металлоконструкций резервуаров ",{"$nulls":6},1,"ВИК"]
[null,2,"2. Контроль сварных соединений и основного металла оборудования НПС при эксплуатации и техническом диагностировании ",{"$nulls":6},2,"ВИК, РК, УК, МК, ПВК"]
[null,3,"3. Контроль сварных соединений и основного металла трубопроводов для нефти и нефтепродуктов, включая технологические трубопроводы, при строительстве, монтаже, ремонте, реконструкции ",{"$nulls":6},3,"ВИК, РК, УК, МК, ПВК"]
[null,4,"4. Контроль сварных соединений и основного металла трубопроводов для нефти и нефтепродуктов, включая технологические трубопроводы, при эксплуатации и техническом диагностировании ",{"$nulls":6},4,"ВИК, РК, УК, МК, ПВК, ПВТ"]
[null,5,"5. Контроль сварных соединений и основного металла резервуаров для хранения нефти и нефтепродуктов при строительстве, монтаже, ремонте, реконструкции",{"$nulls":6},5,"ВИК, РК, УК, МК, ПВК, ПВТ"]
[null,6,"6. Контроль сварных соединений и основного металла резервуаров для хранения нефти и нефтепродуктов при эксплуатации и техническом диагностировании ",{"$nulls":6},6,"ВИК, РК, УК, МК, ПВК, ПВТ"]
[null,7,"7. Дополнительный дефектоскопический контроль дефектов секций трубопровода ",{"$nulls":6},7,"ВИК, УК, МК, ПВК"]

{"sheet":"Заявка по СНК ОПО РОНКТД","index":2,"n_rows":79,"n_cols":7,"rows_kept":79,"merged":[[13,0,13,1],[15,0,15,1],[32,0,37,0],[38,0,45,0],[48,1,49,1],[51,1,52,1],[55,0,55,1]]}
[{"$nulls":3},"Аспирантура, ординатура, адъюнктура"]
[{"$nulls":3},"Высшее образование"]
[{"$nulls":3},"Высшее образование-бакалавриат"]
[{"$nulls":3},"Высшее образование-магистратура"]
["Полное наименование заявителя аттестации \n(Фамилия, имя, отчество заявителя - физического лица)\n",{"$f":"'Общие данные'!B2","v":0},null,"Высшее образование-специалитет"]
["Адрес (место нахождения)",{"$f":"'Общие данные'!B6","v":0},null,"Начальное профессиональное образование (c 2014г. - Подготовка квалифицированных рабочих (служащих)"]
["Почтовый адреc                                                                                                                                   адрес регистрации для физического лица)",{"$f":"'Общие данные'!B7","v":0},null,"Неполное высшее образование"]
["ИНН",{"$f":"'Общие данные'!B9","v":{"$error":"#N/A"}},null,"Основное общее"]
["Телефон",{"$f":"'Общие данные'!C8","v":0},null,"Профессиональная переподготовка"]
["Электронный адрес",{"$f":"'Общие данные'!B14","v":0},null,"Среднее общее образование"]
["Контактное лицо (ФИО, телефон) ",{"$f":"D15&\" \"&D16","v":"0 0"},null,"Среднее профессиональное образование "]
["Дата оформления заявки",{"$f":"'Общие данные'!B1","v":"2024-03-11"},null,"РФ "]
[{"$nulls":3},"KZ"]
["Заявка на аттестацию специалиста неразрушающего контроля ",null,null,"BY",null,"1. Котельное оборудование (КО)","ко"]
[{"$nulls":3},{"$f":"'Общие данные'!B8","v":0},null,"2. Газовое оборудование (ГО) ","го"]
["№ ________ от «_____» _______________ 20___ г.1",null,null,{"$f":"'Общие данные'!C8","v":0},null,"3. Подъемно-транспортное оборудование (ПТО)","пто"]
["1. Сведения о кандидате на аттестацию",{"$nulls":4},"6. Нефтегазодобывающее оборудование (НГДО)","нгдо"]
[{"$nulls":5},"8. Оборудование химических, нефтехимических, нефтеперерабатывающих и взрывопожароопасных производств (ОХНВП)","охнвп"]
["Фамилия, имя, отчество ",{"$f":"'Общие данные'!B10","v":0},{"$nulls":3},"11. Строительные конструкции (СК)","ск"]
["Дата рождения",{"$f":"'Общие данные'!B12","v":"00:00:00"}]
["Место работы (сокращенное наименование, адрес места нахождения, телефон)",{"$f":"'Общие данные'!B2","v":0},null,null,"ВИК","1.1. Котлы (паровые, в том числе котлы-бойлеры, а также автономные пароперегреватели и экономайзеры; водогрейные и пароводогрейные;\nэнерготехнологические; котлы-утилизаторы; котлы передвижных и транспортабельных установок; паровые и жидкостные, работающие\nс высокотемпературными органическими и неорганическими\nтеплоносителями (кроме воды и водяного пара); электрокотлы"]
["Образование",{"$f":"'Общие данные'!B27","v":0},null,null,"УК","1.2. Металлические конструкции для котельного оборудования"]
["Уровень квалификации/разряд",{"$f":"'Общие данные'!B23","v":0},null,null,"РК","1.3. Сосуды, работающие под давлением пара, газов, жидкостей"]
["Производственный стаж по методу (виду) НК (при аттестации на II и III уровни)",{"$f":"'Общие данные'!B19","v":0},null,null,"МК","1.4. Трубопроводы пара и горячей воды"]
["Гражданство",{"$f":"'Общие данные'!B22","v":"00:00:00"},null,null,"ПВК","1.5. Трубопроводы пара и горячей воды"]
["Вид аттестации (первичная, дополнительная)",{"$f":"'Общие данные'!B21","v":"00:00:00"},null,"первичная","ПВТ"]
["Номер аттестационного удостоверения",{"$f":"'Общие данные'!B24","v":0},null," дополнительная","ЭК","2.1. Внутренние газопроводы"]
[{"$nulls":4},"ВК","2.2. Наружные газопроводы стальные"]
["2. Область аттестации",{"$nulls":3},"ТК","2.3. Наружные газопроводы полиэтиленовые"]
[{"$nulls":4},"ВД","2.4. Детали и узлы, газовое оборудование"]
["Уровень аттестации",{"$f":"'Общие данные'!B16","v":"00:00:00"},null,"I"]
["Метод (вид) контроля",{"$f":"'Общие данные'!F30","v":""},null,"II",1,"3.1. Грузоподъемные краны"]
["Объекты контроля ",{"$f":"'Общие данные'!D32","v":0},null,{"$f":"VLOOKUP(B33,F14:G19,2,FALSE)","v":{"$error":"#N/A"}},2,"3.2. Подъемники (вышки)"]
[null,{"$f":"'Общие данные'!D34","v":0},null,null,3,"3.3. Дороги канатные, их агрегаты, механизмы и детали. Фуникулеры"]
[null,{"$f":"'Общие данные'!D36","v":0},{"$nulls":3},"3.4. Эскалаторы. Лифты. Платформы подъемные для инвалидов.\nПассажирские конвейеры\n"]
[null,{"$f":"'Общие данные'!D38","v":0},{"$nulls":3},"3.5. Краны – трубоукладчики"]
[null,{"$f":"'Общие данные'!D40","v":0},{"$nulls":3},"3.6. Краны – манипуляторы"]
[null,{"$f":"'Общие данные'!D42","v":0},{"$nulls":3},"3.7. Тали, лебедки"]
["Технические устройства",{"$f":"'Общие данные'!E33","v":""},{"$nulls":3},"3.8. Устройства грузозахватные. Цепи для подъемно-транспортного\nоборудования\n"]
[null,{"$f":"'Общие данные'!E35","v":""},{"$nulls":3},"3.9. Крановые пути"]
[null,{"$f":"'Общие данные'!E37","v":""}]
[null,{"$f":"'Общие данные'!E39","v":""}]
[null,{"$f":"'Общие данные'!E41","v":""}]
[null,{"$f":"'Общие данные'!E43","v":""}]
[]
[{"$nulls":4},4]
["3. Дополнительные сведения (при аттестации на III уровень)",{"$nulls":3},5]
[{"$nulls":4},6]
["Методы (виды) контроля",{"$nulls":3},7]
["(для сдачи базового экзамена)",{"$nulls":3},8]
[{"$nulls":4},9]
["Руководитель организации-заявителя",{"$f":"'Общие данные'!B5","v":0},null,null,10]
["(или заявитель - физическое лицо)",{"$nulls":3},11]
["М.П.","подпись",null,null,12,"6.1. Нефтегазопромысловое и буровое оборудование"]
[{"$nulls":4},13,"6.2. Морские трубопроводы, объекты на шельфе (трубопроводы на\nплатформах, а также сварные основания морских платформ)\n"]
["Приложения:\n- копия документа об образовании;\n- копия медицинского заключения в соответствии с приказом Минздрава РФ от 28.01.2021 г. N 29н;\n- справка с места работы о производственном стаже по заявленному методу (виду) НК;\n- копия трудовой книжки или сведения о трудовой деятельности, предоставляемые из информационных ресурсов Пенсионного фонда РФ;\n- копия документа, подтверждающего наличие квалификации (при наличии);\n- действующее аттестационное удостоверение (при дополнительной аттестации);\n- согласие на обработку персональных данных;\n- одна цветная фотография без уголка (3х4 см).\n",{"$nulls":3},14,"6.3. Промысловые газонефтепродуктопроводы"]
[{"$nulls":4},15,"6.4. Магистральные газопроводы"]
[{"$nulls":4},16,"6.5. Магистральные нефтепроводы и нефтепродуктопроводы"]
[{"$nulls":4},17,"6.6. Резервуары для хранения нефти и нефтепродуктов"]
[{"$nulls":4},18,"6.7. Нефтегазопроводные трубы. Детали трубопроводов. Запорная\nарматура. Насосы, компрессоры\n"]
[{"$nulls":4},19,"6.8. Технологические трубопроводы в пределах УКПГ, КС; ЛДПС, НПС;\nСПХГ; ДКС; ГРС; УЗРГ; ПРГ и др., за исключением трубопроводов,\nобеспечивающих транспорт газа, нефти и нефтепродуктов;\nтрубопроводы автоматизированных газонаполнительных\nкомпрессорных станций (АГНКС)\n"]
[{"$nulls":4},20]
[{"$nulls":4},21,"8.1. Оборудование химических, нефтехимических,\nнефтехимических, нефтеперерабатывающих производств, работающее под давлением\n до 16 МПа\n"]
[{"$nulls":4},22,"8.2. Оборудование химических, нефтехимических,\nнефтеперерабатывающих производств, работающее под давлением\nболее 16 МПа\n"]
[{"$nulls":4},23,"8.3.Оборудование химических, нефтехимических,\nнефтеперерабатывающих производств, работающее под вакуумом.\n"]
[{"$nulls":4},24,"8.4. Резервуары для хранения взрывопожароопасных и токсичных\nвеществ\n"]
[{"$nulls":4},25,"8.5. Изотермические хранилища"]
[{"$nulls":4},26,"8.6. Криогенное оборудование"]
[{"$nulls":4},27,"8.7. Оборудование аммиачных холодильных установок"]
[{"$nulls":4},28,"8.8. Печи, котлы-утилизаторы, энерготехнологические, ВОТ"]
[{"$nulls":4},29,"8.9. Компрессорное и насосное оборудование"]
[{"$nulls":4},30,"8.10. Центрифуги, сепараторы"]
[{"$nulls":5},"8.11. Цистерны, контейнеры (бочки), баллоны\nдля взрывопожароопасных и токсичных веществ\n"]
[{"$nulls":5},"8.12. Технологические трубопроводы и детали трубопроводов"]
[]
[{"$nulls":5},"11.1. Металлические строительные конструкции"]
[{"$nulls":5},"11.2. Бетонные и железобетонные конструкции, арматура, арматурные\nи закладные изделия железобетонных конструкций\n"]
[{"$nulls":5},"11.3. Металлические трубопроводы"]
[{"$nulls":5},"11.4. Конструкции и трубопроводы из полимерных материалов"]

{"sheet":"Заявка на продление СНК ОПО РОН","index":3,"n_rows":48,"n_cols":4,"rows_kept":48,"merged":[[13,0,13,1],[15,0,15,1],[33,0,41,0],[45,1,46,1],[49,0,49,1]]}
[{"$nulls":3},"Аспирантура, ординатура, адъюнктура"]
[{"$nulls":3},"Высшее образование"]
[{"$nulls":3},"Высшее образование-бакалавриат"]
[{"$nulls":3},"Высшее образование-магистратура"]
["Полное наименование заявителя аттестации \n(Фамилия, имя, отчество заявителя - физического лица)\n",{"$f":"'Общие данные'!B2","v":0}]
["Адрес (место нахождения)",{"$f":"'Общие данные'!B6","v":0}]
["Почтовый адреc                                                                                                                                   адрес регистрации для физического лица)",{"$f":"'Общие данные'!B7","v":0}]
["ИНН",{"$f":"'Общие данные'!B9","v":{"$error":"#N/A"}}]
["Телефон",{"$f":"'Общие данные'!C8","v":0}]
["Электронный адрес",{"$f":"'Общие данные'!B14","v":"00:00:00"}]
["Контактное лицо (ФИО, телефон) ",{"$f":"'Заявка по СНК ОПО РОНКТД'!B11","v":"0 0"}]
["Дата оформления заявки",{"$f":"'Общие данные'!B1","v":"2024-03-11"}]
[]
["Заявка на продление срока действия аттестационного удостоверения\nспециалиста неразрушающего контроля\n\n"]
[]
["№ ________ от «_____» _______________ 20___ г.1"]
["1. Сведения о кандидате на аттестацию"]
[]
["Фамилия, имя, отчество ",{"$f":"'Общие данные'!B10","v":0}]
["Дата рождения",{"$f":"'Общие данные'!B12","v":"00:00:00"}]
["Место работы (сокращенное наименование, адрес места нахождения, телефон)",{"$f":"'Общие данные'!B6","v":0}]
["Образование",{"$f":"'Общие данные'!B27","v":0}]
["Номер(а) и срок действия аттестационного(ых) удостоверения(й)",{"$f":"'Общие данные'!B24","v":0}]
[]
["2. Заявляемая к продлению область аттестации"]
[]
["Уровень аттестации",{"$f":"'Общие данные'!B16","v":"00:00:00"}]
["Метод (вид) контроля",{"$f":"'Общие данные'!F30","v":""}]
["Объекты контроля "]
["Технические устройства"]
{"$rows_empty":15}
["Руководитель организации-заявителя",{"$f":"'Общие данные'!B5","v":0}]
["(или заявитель - физическое лицо)"]
["М.П.","подпись"]

{"sheet":"график аттестации","index":4,"n_rows":161,"n_cols":49,"rows_kept":161,"hidden":true,"merged":[[4,2,4,33],[79,3,79,33],[80,3,80,33],[84,2,84,33],[159,3,159,33],[160,3,160,33]]}
[{"$nulls":25},"УТВЕРЖДАЮ"]
[{"$nulls":25},"Директор \"ТНПК\""]
[{"$nulls":25},"Подписано в СЭД Е.А. Парамонов",{"$nulls":13},1,2,3,4,5,6]
[{"$nulls":25},"\"___\"______2023г.",{"$nulls":13},"ВИК","РК","УК","МК","ПВК","ПВТ","ВК","ВД","ЭК","ТК"]
[null,null,"График экзаменов специалистов НК в ЭЦ \"ТНПК\" г.Тюмень  на 1 полугодие 2024 года ",{"$nulls":36},"с 10.01.2024 по 12.01.2024","с 10.01.2024 по 12.01.2024","с 10.01.2024 по 12.01.2024","с 15.01.2024 по 17.01.2024","с 15.01.2024 по 17.01.2024","с 15.01.2024 по 17.01.2024","с 15.01.2024 по 16.01.2024","с 17.01.2024 по 18.01.2024","с 15.01.2024 по 16.01.2024","с 17.01.2024 по 18.01.2024"]
[{"$nulls":16},"январь",{"$nulls":22},"с 22.01.2024 по 24.01.2024","с 22.01.2024 по 24.01.2024","с 22.01.2024 по 24.01.2024","с 22.01.2024 по 24.01.2024","с 25.01.2024 по 29.01.2024","с 25.01.2024 по 29.01.2024","с 13.02.2024 по 14.02.2024","с 14.02.2024 по 15.02.2024","с 13.02.2024 по 14.02.2024","с 14.02.2024 по 15.02.2024"]
[{"$nulls":3},1,2,3,4,5,6,7,8,9,10,11,12,13,14,15,16,17,18,19,20,21,22,23,24,25,26,27,28,29,30,31,{"$nulls":5},"с 08.02.2024 по 12.02.2024","с 05.02.2024 по 07.02.2024","с 05.02.2024 по 07.02.2024","с 19.02.2024 по 21.02.2024","с 08.02.2024 по 12.02.2024","с 05.02.2024 по 07.02.2024","с 04.03.2024 по 05.03.2024","с 06.03.2024 по 07.03.2024","с 04.03.2024 по 05.03.2024","с 06.03.2024 по 07.03.2024"]
[null,null,"РК-экзамен",{"$nulls":9},"РК",{"$nulls":11},"РК",{"$nulls":14},"с 19.02.2024 по 21.02.2024","с 13.02.2024 по 15.02.2024","с 13.02.2024 по 15.02.2024","с 11.03.2024 по 13.03.2024","с 19.02.2024 по 21.02.2024","с 08.02.2024 по 12.02.2024","с 15.04.2024 по 16.04.2024","с 17.04.2024 по 18.04.2024","с 29.04.2024 по 30.04.2024","с 15.04.2024 по 16.04.2024"]
[null,null,"УК-экзамен",{"$nulls":9},"УК",{"$nulls":11},"УК",{"$nulls":14},"с 26.02.2024 по 28.02.2024","с 26.02.2024 по 28.02.2024","с 26.02.2024 по 28.02.2024","с 19.03.2024 по 21.03.2024","с 04.03.2024 по 06.03.2024","с 19.02.2024 по 21.02.2024","с 10.06.2024 по 11.06.2024","с 13.06.2024 по 14.06.2024","с 13.06.2024 по 14.06.2024","с 10.06.2024 по 11.06.2024"]
[null,null,"ВИК-экзамен",{"$nulls":9},"ВИК",{"$nulls":11},"ВИК",{"$nulls":14},"с 04.03.2024 по 06.03.2024","с 11.03.2024 по 13.03.2024","с 04.03.2024 по 06.03.2024","с 29.03.2024 по 02.04.2024","с 11.03.2024 по 13.03.2024","с 19.03.2024 по 21.03.2024","с 12.08.2024 по 13.08.2024","с 13.08.2024 по 14.08.2024","с 12.08.2024 по 13.08.2024","с 13.08.2024 по 14.08.2024"]
[null,null,"ПВК-экзамен",{"$nulls":14},"ПВК",{"$nulls":9},"ПВК",{"$nulls":11},"с 14.03.2024 по 18.03.2024","с 19.03.2024 по 21.03.2024","с 14.03.2024 по 18.03.2024","с 15.04.2024 по 17.04.2024","с 14.03.2024 по 18.03.2024","с 27.03.2024 по 29.03.2024","с 02.09.2024 по 03.09.2024","с 04.09.2024 по 05.09.2024","с 02.09.2024 по 03.09.2024","с 04.09.2024 по 05.09.2024"]
[null,null,"ПВТ-экзамен",{"$nulls":14},"ПВТ",{"$nulls":9},"ПВТ",{"$nulls":11},"с 22.03.2024 по 26.03.2024","с 27.03.2024 по 29.03.2024","с 22.03.2024 по 26.03.2024","с 23.04.2024 по 25.04.2024","с 22.03.2024 по 26.03.2024","с 10.04.2024 по 12.04.2024","с 08.10.2024 по 09.10.2024","с 10.10.2024 по 11.10.2024","с 08.10.2024 по 09.10.2024","с 10.10.2024 по 11.10.2024"]
[null,null,"МК-экзамен",{"$nulls":14},"МК",{"$nulls":6},"МК",{"$nulls":14},"с 08.04.2024 по 10.04.2024","с 08.04.2024 по 10.04.2024","с 05.04.2024 по 09.04.2024","с 16.05.2024 по 20.05.2024","с 10.04.2024 по 12.04.2024","с 15.04.2024 по 17.04.2024",null,null,"с 11.12.2024 по 12.12.2024"]
[null,null,"ВК-экзамен",{"$nulls":14},"ВК",{"$nulls":21},"с 18.04.2024 по 22.04.2024","с 18.04.2024 по 22.04.2024","с 11.04.2024 по 15.04.2024","с 27.05.2024 по 29.05.2024","с 18.04.2024 по 22.04.2024","с 23.04.2024 по 25.04.2024"]
[null,null,"ВД-экзамен",{"$nulls":16},"ВД",{"$nulls":19},"с 03.05.2024 по 07.05.2024","с 29.04.2024 по 02.05.2024","с 29.04.2024 по 02.05.2024","с 05.06.2024 по 07.06.2024","с 03.05.2024 по 07.05.2024","с 13.05.2024 по 15.05.2024"]
[null,null,"ЭК-экзамен",{"$nulls":14},"ЭК",{"$nulls":21},"с 13.05.2024 по 15.05.2024","с 03.05.2024 по 07.05.2024","с 03.05.2024 по 07.05.2024","с 19.06.2024 по 21.06.2024","с 16.05.2024 по 20.05.2024","с 10.06.2024 по 13.06.2024"]
[null,null,"ТК-экзамен",{"$nulls":16},"ТК",{"$nulls":19},"с 16.05.2024 по 20.05.2024","с 13.05.2024 по 15.05.2024","с 13.05.2024 по 15.05.2024","с 08.08.2024 по 12.08.2024","с 21.05.2024 по 23.05.2024","с 19.06.2024 по 21.06.2024"]
[{"$nulls":16},"февраль",{"$nulls":22},"с 10.06.2024 по 13.06.2024","с 21.05.2024 по 23.05.2024","с 21.05.2024 по 23.05.2024","с 16.08.2024 по 20.08.2024","с 10.06.2024 по 13.06.2024","с 08.08.2024 по 12.08.2024"]
[{"$nulls":3},1,2,3,4,5,6,7,8,9,10,11,12,13,14,15,16,17,18,19,20,21,22,23,24,25,26,27,28,29,{"$nulls":7},"с 05.08.2024 по 07.08.2024","с 27.05.2024 по 29.05.2024","с 27.05.2024 по 29.05.2024","с 26.08.2024 по 28.08.2024","с 19.06.2024 по 21.06.2024","с 16.08.2024 по 20.08.2024"]
[null,null,"РК-экзамен",{"$nulls":4},"РК",{"$nulls":7},"РК",{"$nulls":12},"РК",{"$nulls":10},"с 13.08.2024 по 15.08.2024","с 05.06.2024 по 07.06.2024","с 05.06.2024 по 07.06.2024","с 11.09.2024 по 13.09.2024","с 08.08.2024 по 12.08.2024","с 26.08.2024 по 28.08.2024"]
[null,null,"УК-экзамен",{"$nulls":4},"УК",{"$nulls":7},"УК",{"$nulls":12},"УК",{"$nulls":10},"с 21.08.2024 по 23.08.2024","с 19.06.2024 по 21.06.2024","с 05.08.2024 по 07.08.2024","с 18.09.2024 по 20.09.2024","с 16.08.2024 по 20.08.2024","с 06.09.2024 по 10.09.2024"]
[null,null,"ВИК-экзамен",{"$nulls":7},"ВИК",{"$nulls":10},"ВИК",{"$nulls":6},"ВИК",{"$nulls":10},"с 03.09.2024 по 05.09.2024","с 05.08.2024 по 07.08.2024","с 13.08.2024 по 15.08.2024","с 30.09.2024 по 02.10.2024","с 26.08.2024 по 28.08.2024","с 18.09.2024 по 20.09.2024"]
[null,null,"ПВК-экзамен",{"$nulls":7},"ПВК",{"$nulls":10},"ПВК",{"$nulls":17},"с 11.09.2024 по 13.09.2024","с 13.08.2024 по 15.08.2024","с 21.08.2024 по 23.08.2024","с 15.10.2024 по 17.10.2024","с 06.09.2024 по 10.09.2024","с 07.10.2024 по 09.10.2024"]
[null,null,"ПВТ-экзамен",{"$nulls":4},"ПВТ",{"$nulls":13},"ПВТ",{"$nulls":17},"с 23.09.2024 по 25.09.2024","с 21.08.2024 по 23.08.2024","с 03.09.2024 по 05.09.2024","с 23.10.2024 по 25.10.2024","с 13.09.2024 по 17.09.2024","с 14.10.2024 по 16.10.2024"]
[null,null,"МК-экзамен",{"$nulls":7},"МК",{"$nulls":10},"МК",{"$nulls":17},"с 03.10.2024 по 07.10.2024","с 03.09.2024 по 05.09.2024","с 11.09.2024 по 13.09.2024","с 02.11.2024 по 06.11.2024","с 03.10.2024 по 07.10.2024","с 18.10.2024 по 22.10.2024"]
[null,null,"ВК-экзамен",{"$nulls":12},"ВК",{"$nulls":23},"с 15.10.2024 по 17.10.2024","с 18.09.2024 по 20.09.2024","с 23.09.2024 по 25.09.2024","с 12.11.2024 по 14.11.2024","с 18.10.2024 по 22.10.2024","с 07.11.2024 по 11.11.2024"]
[null,null,"ВД-экзамен",{"$nulls":14},"ВД",{"$nulls":21},"с 28.10.2024 по 30.10.2024","с 23.09.2024 по 25.09.2024","с 03.10.2024 по 07.10.2024","с 25.11.2024 по 27.11.2024","с 07.11.2024 по 11.11.2024","с 18.11.2024 по 20.10.2024"]
[null,null,"ЭК-экзамен",{"$nulls":12},"ЭК",{"$nulls":23},"с 02.11.2024 по 06.11.2024","с 10.10.2024 по 14.10.2024","с 15.10.2024 по 17.10.2024","с 05.12.2024 по 09.12.2024","с 25.11.2024 по 27.11.2024","с 25.11.2024 по 27.11.2024"]
[null,null,"ТК-экзамен",{"$nulls":14},"ТК",{"$nulls":21},"с 12.11.2024 по 14.11.2024","с 23.10.2024 по 25.10.2024","с 28.10.2024 по 30.10.2024","с 16.12.2024 по 18.12.2024","с 05.12.2024 по 09.12.2024","с 05.12.2024 по 09.12.2024"]
[{"$nulls":16},"март",{"$nulls":22},"с 19.11.2024 по 21.11.2024","с 07.11.2024 по 11.11.2024","с 02.11.2024 по 06.11.2024","с 23.12.2024 по 25.12.2024","с 13.12.2024 по 17.12.2024","с 13.12.2024 по 17.12.2024"]
[{"$nulls":3},1,2,3,4,5,6,7,8,9,10,11,12,13,14,15,16,17,18,19,20,21,22,23,24,25,26,27,28,29,30,31,{"$nulls":5},"с 02.12.2024 по 04.12.2024","с 25.11.2024 по 27.11.2024","с 12.11.2024 по 14.11.2024",null,"с 23.12.2024 по 25.12.2024","с 23.12.2024 по 25.12.2024"]
[null,null,"РК-экзамен",{"$nulls":10},"РК",{"$nulls":7},"РК",{"$nulls":7},"РК",{"$nulls":9},"с 10.12.2024 по 12.12.2024","с 02.12.2024 по 04.12.2024","с 19.11.2024 по 21.11.2024"]
[null,null,"УК-экзамен",{"$nulls":3},"УК",{"$nulls":9},"УК",{"$nulls":7},"УК",{"$nulls":14},"с 18.12.2024 по 20.12.2024","с 10.12.2024 по 12.12.2024","с 02.12.2024 по 04.12.2024"]
[null,null,"ВИК-экзамен",{"$nulls":3},"ВИК",{"$nulls":9},"ВИК",{"$nulls":7},"ВИК",{"$nulls":14},"с 23.12.2024 по 25.12.2024","с 18.12.2024 по 20.12.2024","с 10.12.2024 по 12.12.2024"]
[null,null,"ПВК-экзамен",{"$nulls":3},"ПВК",{"$nulls":9},"ПВК",{"$nulls":7},"ПВК",{"$nulls":16},"с 18.12.2024 по 20.12.2024"]
[null,null,"ПВТ-экзамен",{"$nulls":10},"ПВТ",{"$nulls":7},"ПВТ",{"$nulls":7},"ПВТ",{"$nulls":11},"с 25.12.2024 по 27.12.2024"]
[null,null,"МК-экзамен",{"$nulls":10},"МК",{"$nulls":7},"МК",{"$nulls":9},"МК"]
[null,null,"ВК-экзамен",{"$nulls":3},"ВК"]
[null,null,"ВД-экзамен",{"$nulls":5},"ВД"]
[null,null,"ЭК-экзамен",{"$nulls":3},"ЭК"]
[null,null,"ТК-экзамен",{"$nulls":5},"ТК"]
[{"$nulls":16},"апрель"]
[{"$nulls":3},1,2,3,4,5,6,7,8,9,10,11,12,13,14,15,16,17,18,19,20,21,22,23,24,25,26,27,28,29,30]
[null,null,"РК-экзамен",{"$nulls":7},"РК",{"$nulls":9},"РК",{"$nulls":10},"РК"]
[null,null,"УК-экзамен",{"$nulls":4},"УК",{"$nulls":5},"УК",{"$nulls":17},"УК"]
[null,null,"ВИК-экзамен",{"$nulls":7},"ВИК",{"$nulls":9},"ВИК"]
[null,null,"ПВК-экзамен",{"$nulls":9},"ПВК",{"$nulls":7},"ПВК"]
[null,null,"ПВТ-экзамен",{"$nulls":9},"ПВТ",{"$nulls":4},"ПВТ",{"$nulls":7},"ПВТ"]
[null,null,"МК-экзамен",{"$nulls":14},"МК",{"$nulls":7},"МК"]
[null,null,"ВК-экзамен",{"$nulls":14},"ВК"]
[null,null,"ВД-экзамен",{"$nulls":16},"ВД"]
[null,null,"ЭК-экзамен",{"$nulls":28},"ЭК"]
[null,null,"ТК-экзамен",{"$nulls":14},"ТК"]
[{"$nulls":16},"май"]
[{"$nulls":3},1,2,3,4,5,6,7,8,9,10,11,12,13,14,15,16,17,18,19,20,21,22,23,24,25,26,27,28,29,30,31]
[null,null,"РК-экзамен",null,null,"РК",{"$nulls":9},"РК",{"$nulls":7},"РК",{"$nulls":5},"РК"]
[null,null,"УК-экзамен",null,null,"УК",{"$nulls":9},"УК",{"$nulls":7},"УК",{"$nulls":5},"УК"]
[null,null,"ВИК-экзамен",null,null,"ВИК",{"$nulls":9},"ВИК",null,null,"ВИК"]
[null,null,"ПВК-экзамен",null,null,"ПВК",{"$nulls":12},"ПВК"]
[null,null,"ПВТ-экзамен",{"$nulls":12},"ПВТ",{"$nulls":7},"ПВТ"]
[null,null,"МК-экзамен",{"$nulls":15},"МК",{"$nulls":10},"МК"]
[null,null,"ВК-экзамен"]
[null,null,"ВД-экзамен"]
[null,null,"ЭК-экзамен"]
[null,null,"ТК-экзамен"]
[{"$nulls":16},"июнь"]
[{"$nulls":3},1,2,3,4,5,6,7,8,9,10,11,12,13,14,15,16,17,18,19,20,21,22,23,24,25,26,27,28,29,30]
[null,null,"РК-экзамен",{"$nulls":4},"РК",{"$nulls":13},"РК"]
[null,null,"УК-экзамен",{"$nulls":4},"УК",{"$nulls":8},"УК"]
[null,null,"ВИК-экзамен",{"$nulls":9},"ВИК",{"$nulls":3},"ВИК"]
[null,null,"ПВК-экзамен",{"$nulls":9},"ПВК",{"$nulls":8},"ПВК"]
[null,null,"ПВТ-экзамен",{"$nulls":9},"ПВТ",{"$nulls":8},"ПВТ"]
[null,null,"МК-экзамен",{"$nulls":4},"МК",{"$nulls":13},"МК"]
[null,null,"ВК-экзамен",{"$nulls":9},"ВК"]
[null,null,"ВД-экзамен",{"$nulls":12},"ВД"]
[null,null,"ЭК-экзамен",{"$nulls":12},"ЭК"]
[null,null,"ТК-экзамен",{"$nulls":9},"ТК"]
[]
[]
[{"$nulls":3},"- экзамены после обучения в \"ТНПК\""]
[{"$nulls":3},"- дополнительные группы"]
[]
[null,null,"Примечание: Заявки могут быть оформлены в любые, по соответствующему методу, группы не зависимо от цвета, согласно графику "]
[]
[null,null,"График экзаменов специалистов НК в ЭЦ \"ТНПК\" г.Тюмень  на 2 полугодие 2024 года "]
[{"$nulls":16},"июль"]
[{"$nulls":3},1,2,3,4,5,6,7,8,9,10,11,12,13,14,15,16,17,18,19,20,21,22,23,24,25,26,27,28,29,30,31]
[null,null,"РК-экзамен"]
[null,null,"УК-экзамен"]
[null,null,"ВИК-экзамен"]
[null,null,"ПВК-экзамен"]
[null,null,"ПВТ-экзамен"]
[null,null,"МК-экзамен"]
[null,null,"ВК-экзамен"]
[null,null,"ВД-экзамен"]
[null,null,"ЭК-экзамен"]
[null,null,"ТК-экзамен"]
[{"$nulls":17},"август"]
[{"$nulls":3},1,2,3,4,5,6,7,8,9,10,11,12,13,14,15,16,17,18,19,20,21,22,23,24,25,26,27,28,29,30,31]
[null,null,"РК-экзамен",{"$nulls":4},"РК",{"$nulls":7},"РК",{"$nulls":7},"РК"]
[null,null,"УК-экзамен",{"$nulls":4},"УК",{"$nulls":7},"УК",{"$nulls":7},"УК"]
[null,null,"ВИК-экзамен",{"$nulls":4},"ВИК",{"$nulls":7},"ВИК",{"$nulls":7},"ВИК"]
[null,null,"ПВК-экзамен",{"$nulls":7},"ПВК",{"$nulls":7},"ПВК",{"$nulls":9},"ПВК"]
[null,null,"ПВТ-экзамен",{"$nulls":7},"ПВТ",{"$nulls":7},"ПВТ",{"$nulls":9},"ПВТ"]
[null,null,"МК-экзамен",{"$nulls":7},"МК",{"$nulls":7},"МК",{"$nulls":9},"МК"]
[null,null,"ВК-экзамен",{"$nulls":11},"ВК"]
[null,null,"ВД-экзамен",{"$nulls":13},"ВД"]
[null,null,"ЭК-экзамен",{"$nulls":11},"ЭК"]
[null,null,"ТК-экзамен",{"$nulls":13},"ТК"]
[{"$nulls":16},"сентябрь"]
[{"$nulls":3},1,2,3,4,5,6,7,8,9,10,11,12,13,14,15,16,17,18,19,20,21,22,23,24,25,26,27,28,29,30]
[null,null,"РК-экзамен",null,null,"РК",{"$nulls":14},"РК",{"$nulls":4},"РК"]
[null,null,"УК-экзамен",null,null,"УК",{"$nulls":7},"УК",{"$nulls":11},"УК"]
[null,null,"ВИК-экзамен",null,null,"ВИК",{"$nulls":7},"ВИК",{"$nulls":11},"ВИК"]
[null,null,"ПВК-экзамен",{"$nulls":5},"ПВК",{"$nulls":6},"ПВК"]
[null,null,"ПВТ-экзамен",{"$nulls":5},"ПВТ",{"$nulls":11},"ПВТ"]
[null,null,"МК-экзамен",{"$nulls":10},"МК",{"$nulls":6},"МК",{"$nulls":11},"МК"]
[null,null,"ВК-экзамен",null,"ВК"]
[null,null,"ВД-экзамен",{"$nulls":3},"ВД"]
[null,null,"ЭК-экзамен",null,"ЭК"]
[null,null,"ТК-экзамен",{"$nulls":3},"ТК"]
[{"$nulls":16},"октябрь"]
[{"$nulls":3},1,2,3,4,5,6,7,8,9,10,11,12,13,14,15,16,17,18,19,20,21,22,23,24,25,26,27,28,29,30,31]
[null,null,"РК-экзамен",{"$nulls":9},"РК",{"$nulls":12},"РК"]
[null,null,"УК-экзамен",null,null,"УК",{"$nulls":11},"УК",{"$nulls":12},"УК"]
[null,null,"ВИК-экзамен",null,null,"ВИК",{"$nulls":11},"ВИК",{"$nulls":12},"ВИК"]
[null,null,"ПВК-экзамен",null,null,"ПВК",{"$nulls":10},"ПВК",{"$nulls":3},"ПВК"]
[null,null,"ПВТ-экзамен",{"$nulls":6},"ПВТ",{"$nulls":10},"ПВТ"]
[null,null,"МК-экзамен","МК",{"$nulls":13},"МК",{"$nulls":7},"МК"]
[null,null,"ВК-экзамен",{"$nulls":7},"ВК"]
[null,null,"ВД-экзамен",{"$nulls":9},"ВД"]
[null,null,"ЭК-экзамен",{"$nulls":7},"ЭК"]
[null,null,"ТК-экзамен",{"$nulls":9},"ТК"]
[{"$nulls":18},"ноябрь"]
[{"$nulls":3},1,2,3,4,5,6,7,8,9,10,11,12,13,14,15,16,17,18,19,20,21,22,23,24,25,26,27,28,29,30]
[null,null,"РК-экзамен",{"$nulls":6},"РК",{"$nulls":7},"РК",{"$nulls":9},"РК"]
[null,null,"УК-экзамен",null,"УК",{"$nulls":9},"УК",{"$nulls":7},"УК"]
[null,null,"ВИК-экзамен",null,"ВИК",{"$nulls":9},"ВИК",{"$nulls":7},"ВИК"]
[null,null,"ПВК-экзамен",{"$nulls":6},"ПВК",{"$nulls":7},"ПВК",{"$nulls":9},"ПВК"]
[null,null,"ПВТ-экзамен",{"$nulls":6},"ПВТ",{"$nulls":10},"ПВТ",{"$nulls":6},"ПВТ"]
[null,null,"МК-экзамен",null,"МК",{"$nulls":9},"МК",{"$nulls":12},"МК"]
[null,null,"ВК-экзамен"]
[null,null,"ВД-экзамен"]
[null,null,"ЭК-экзамен"]
[null,null,"ТК-экзамен"]
[{"$nulls":17},"декабрь"]
[{"$nulls":3},1,2,3,4,5,6,7,8,9,10,11,12,13,14,15,16,17,18,19,20,21,22,23,24,25,26,27,28,29,30,31]
[null,null,"РК-экзамен",null,"РК",{"$nulls":7},"РК",{"$nulls":7},"РК"]
[null,null,"УК-экзамен",null,"УК",{"$nulls":7},"УК",{"$nulls":7},"УК",{"$nulls":6},"УК"]
[null,null,"ВИК-экзамен",null,"ВИК",{"$nulls":7},"ВИК",{"$nulls":7},"ВИК",{"$nulls":4},"ВИК"]
[null,null,"ПВК-экзамен",{"$nulls":4},"ПВК",{"$nulls":7},"ПВК",{"$nulls":9},"ПВК"]
[null,null,"ПВТ-экзамен",{"$nulls":4},"ПВТ",{"$nulls":7},"ПВТ",{"$nulls":9},"ПВТ"]
[null,null,"МК-экзамен",{"$nulls":4},"МК",{"$nulls":10},"МК",{"$nulls":6},"МК"]
[null,null,"ВК-экзамен"]
[null,null,"ВД-экзамен"]
[null,null,"ЭК-экзамен",{"$nulls":10},"ЭК"]
[null,null,"ТК-экзамен"]
[]
[]
[{"$nulls":3},"- экзамены после обучения в \"ТНПК\""]
[{"$nulls":3},"- дополнительные группы"]